bitfinex/quotes_BTCUSD_20251110
["timestamp","ask_amount","ask_price","bid_price","bid_amount"]
[1762775020543,0.06017088,106300.0,106290.0,0.37306026]
[1762775020744,0.06017088,106300.0,106290.0,0.70070437]
[1762775024625,0.07142088,106300.0,106290.0,0.70070437]
[1762775024943,0.29906763,106300.0,106290.0,0.36510985]
[1762775025282,0.11092088,106300.0,106290.0,0.69649396]
[1762775026298,0.08654088,106300.0,106290.0,0.69549396]
[1762775026707,0.08754088,106300.0,106290.0,0.69349396]
[1762775026905,0.08754088,106300.0,106290.0,0.54779396]
[1762775028111,0.07242088,106300.0,106290.0,0.55153396]
[1762775030023,0.06117088,106300.0,106290.0,0.55153396]
[1762775031058,0.06117088,106300.0,106290.0,0.87827396]
[1762775035780,0.06117088,106300.0,106290.0,1.02397396]
[1762775037747,0.06117088,106300.0,106290.0,1.02397396]
[1762775037966,0.06117088,106300.0,106290.0,1.02444437]
[1762775038400,0.06117088,106300.0,106290.0,1.02397396]
[1762775038790,0.06117088,106300.0,106290.0,1.02444437]
[1762775038954,0.06117088,106300.0,106290.0,1.02437844]
[1762775039361,0.06117088,106300.0,106290.0,1.32103451]
[1762775039648,0.06117088,106300.0,106290.0,1.32150492]
[1762775039829,0.06117088,106300.0,106290.0,1.40564835]
[1762775040402,0.06017088,106300.0,106290.0,1.40864835]
[1762775040779,0.06017088,106300.0,106290.0,1.41064835]
[1762775041187,0.06017088,106300.0,106290.0,1.41111876]
[1762775041609,0.06017088,106300.0,106290.0,1.41064835]
[1762775042250,1e-08,106300.0,106290.0,1.41064835]
[1762775042656,1e-08,106300.0,106290.0,1.41111876]
[1762775043159,1e-08,106300.0,106290.0,1.41064835]
[1762775043541,1e-08,106300.0,106290.0,1.41111876]
[1762775044658,1e-08,106300.0,106290.0,1.55681876]
[1762775044886,9.053e-05,106300.0,106290.0,1.55681876]
[1762775048493,9.053e-05,106300.0,106290.0,1.47220492]
[1762775056429,9.053e-05,106300.0,106290.0,1.55681876]
[1762775057137,9.053e-05,106300.0,106290.0,0.8941824]
[1762775057344,9.053e-05,106300.0,106290.0,1.55681876]
[1762775058011,9.053e-05,106300.0,106290.0,1.47220492]
[1762775060179,9.053e-05,106300.0,106290.0,0.69758985]
[1762775060378,9.053e-05,106300.0,106290.0,1.02890803]
[1762775061834,9.053e-05,106300.0,106290.0,1.43555223]
[1762775066756,9.053e-05,106300.0,106290.0,1.43525223]
[1762775068833,9.053e-05,106300.0,106290.0,1.32573451]
[1762775069047,9.053e-05,106300.0,106290.0,0.99488674]
[1762775069196,9.053e-05,106300.0,106290.0,0.95823405]
[1762775069416,0.01141053,106300.0,106290.0,0.87916803]
[1762775070111,9.053e-05,106300.0,106290.0,0.87916803]
[1762775070286,9.053e-05,106300.0,106290.0,0.87616803]
[1762775070670,9.053e-05,106300.0,106290.0,0.88190803]
[1762775071110,9.053e-05,106300.0,106290.0,0.87990803]
[1762775077745,9.053e-05,106300.0,106290.0,1.32273451]
[1762775078145,9.053e-05,106300.0,106290.0,1.40692429]
[1762775078981,9.053e-05,106300.0,106290.0,1.55262429]
[1762775085591,9.053e-05,106300.0,106290.0,1.81774442]
[1762775085798,9.053e-05,106300.0,106290.0,1.5158061]
[1762775086004,9.053e-05,106300.0,106290.0,1.48642624]
[1762775086416,9.053e-05,106300.0,106290.0,1.59930624]
[1762775086623,9.053e-05,106300.0,106290.0,1.59977665]
[1762775086802,9.053e-05,106300.0,106290.0,1.59930624]
[1762775087188,9.053e-05,106300.0,106290.0,1.59730624]
[1762775087389,9.053e-05,106300.0,106290.0,1.60230624]
[1762775087593,9.053e-05,106300.0,106290.0,1.60277665]
[1762775087795,9.053e-05,106300.0,106290.0,1.60530624]
[1762775088311,9.053e-05,106300.0,106290.0,1.60577665]
[1762775088491,9.053e-05,106300.0,106290.0,2.025562]
[1762775088862,9.053e-05,106300.0,106290.0,1.935562]
[1762775089059,9.053e-05,106300.0,106290.0,1.822682]
[1762775090151,9.053e-05,106300.0,106290.0,1.431282]
[1762775090520,9.053e-05,106300.0,106290.0,1.34719665]
[1762775090930,9.053e-05,106300.0,106290.0,1.32420492]
[1762775091401,9.053e-05,106300.0,106290.0,0.99288674]
[1762775091550,9.053e-05,106300.0,106290.0,0.99488674]
[1762775091798,9.053e-05,106300.0,106290.0,1.32620492]
[1762775093285,9.053e-05,106300.0,106290.0,1.32573451]
[1762775095759,9.053e-05,106300.0,106290.0,0.91909031]
[1762775096425,9.053e-05,106300.0,106290.0,1.25040849]
[1762775096646,9.053e-05,106300.0,106290.0,1.32573451]
[1762775101050,9.053e-05,106300.0,106290.0,1.32563517]
[1762775104409,9.053e-05,106300.0,106290.0,1.40972052]
[1762775118161,9.053e-05,106300.0,106290.0,1.55542052]
[1762775121296,9.053e-05,106300.0,106290.0,0.8928835]
[1762775121671,9.053e-05,106300.0,106290.0,1.55542052]
[1762775125220,9.053e-05,106300.0,106290.0,1.58920087]
[1762775125633,2.18e-05,106300.0,106290.0,1.47133517]
[1762775126021,2.18e-05,106300.0,106290.0,1.58920087]
[1762775126347,2.18e-05,106300.0,106290.0,1.47133517]
[1762775127761,2.18e-05,106300.0,106290.0,1.55552814]
[1762775132312,2.18e-05,106300.0,106290.0,1.64552814]
[1762775133479,2.18e-05,106300.0,106290.0,2.00617651]
[1762775133693,2.18e-05,106300.0,106290.0,1.89307409]
[1762775134134,2.18e-05,106300.0,106290.0,1.67967128]
[1762775134315,2.18e-05,106300.0,106290.0,1.89307409]
[1762775134898,2.18e-05,106300.0,106290.0,1.91057487]
[1762775135584,2.18e-05,106300.0,106290.0,2.15580446]
[1762775137788,0.04328449,106310.0,106300.0,0.22432903]
[1762775137949,0.04328449,106310.0,106300.0,1.3134701]
[1762775138950,0.04328449,106310.0,106300.0,1.3424954]
[1762775141354,0.04328449,106310.0,106300.0,1.48866576]
[1762775141569,0.04328449,106310.0,106300.0,1.4871954]
[1762775142087,0.04328449,106310.0,106300.0,1.4901954]
[1762775142716,0.04328449,106310.0,106300.0,1.4921954]
[1762775143769,0.04351756,106310.0,106300.0,1.4921954]
[1762775146458,0.04351756,106310.0,106300.0,1.49266576]
[1762775147370,0.04351756,106310.0,106300.0,1.4921954]
[1762775147578,0.04351756,106310.0,106300.0,1.16139725]
[1762775150245,0.04351756,106310.0,106300.0,1.34696576]
[1762775151805,0.04351756,106310.0,106300.0,1.26285022]
[1762775152629,0.04351756,106310.0,106300.0,1.34696576]
[1762775157662,0.04351756,106310.0,106300.0,1.3467407]
[1762775161810,0.04351756,106310.0,106300.0,1.4924407]
[1762775162955,0.04351756,106310.0,106300.0,0.82979732]
[1762775167381,0.04351756,106310.0,106300.0,0.82932696]
[1762775168862,0.04351756,106310.0,106300.0,0.82979732]
[1762775169043,0.04351756,106310.0,106300.0,0.82932696]
[1762775170791,0.04351756,106310.0,106300.0,1.16048911]
[1762775170990,0.04351756,106310.0,106300.0,0.82932696]
[1762775171236,0.04351756,106310.0,106300.0,1.16048911]
[1762775172193,0.04351756,106310.0,106300.0,0.82932696]
[1762775188397,0.04351756,106310.0,106300.0,0.83894922]
[1762775188701,0.04351756,106310.0,106300.0,0.82932696]
[1762775188940,0.04351756,106310.0,106300.0,1.16048911]
[1762775189847,0.04351756,106310.0,106300.0,0.82932696]
[1762775195819,0.04351756,106310.0,106300.0,1.16048911]
[1762775196001,1e-08,106310.0,106300.0,1.16048911]
[1762775196434,0.04766551,106320.0,106310.0,0.22431133]
[1762775196569,0.04814654,106320.0,106310.0,1.05359828]
[1762775197056,0.04837958,106320.0,106310.0,1.08182936]
[1762775197498,0.04837958,106320.0,106310.0,1.08582936]
[1762775198106,0.04837958,106320.0,106310.0,1.08882936]
[1762775198463,0.04837958,106320.0,106310.0,1.17882936]
[1762775199925,0.04837958,106320.0,106310.0,1.32452936]
[1762775201887,0.04837958,106320.0,106310.0,1.32499955]
[1762775205916,0.04837958,106320.0,106310.0,1.32452936]
[1762775206141,0.07263604,106330.0,106320.0,0.54729364]
[1762775206350,0.07268411,106330.0,106320.0,1.36279794]
[1762775206561,0.07268411,106330.0,106320.0,0.70047364]
[1762775206765,0.07268411,106330.0,106320.0,1.43002509]
[1762775206971,0.07268411,106330.0,106320.0,1.39102772]
[1762775207378,0.07268411,106330.0,106320.0,1.46024791]
[1762775209663,0.07268411,106330.0,106320.0,1.46124791]
[1762775211507,0.07268411,106330.0,106320.0,1.46104791]
[1762775211981,0.07291712,106330.0,106320.0,1.46104791]
[1762775223676,0.07291712,106330.0,106320.0,1.39382772]
[1762775225115,0.07291712,106330.0,106320.0,1.80862426]
[1762775226615,0.07291712,106330.0,106320.0,1.47763619]
[1762775226820,0.07291712,106330.0,106320.0,1.47389619]
[1762775227476,0.07291712,106330.0,106320.0,1.47763619]
[1762775229239,0.07291712,106330.0,106320.0,1.47389619]
[1762775234605,0.08465712,106330.0,106320.0,1.54122267]
[1762775234788,0.12515712,106330.0,106320.0,1.41714376]
[1762775235826,0.12515712,106330.0,106320.0,0.75516762]
[1762775236028,0.12515712,106330.0,106320.0,1.41714376]
[1762775236328,0.14866882,106330.0,106320.0,1.08615569]
[1762775236719,0.33676249,106330.0,106320.0,1.08615569]
[1762775236922,0.31325079,106330.0,106320.0,1.08615569]
[1762775237123,0.31325079,106330.0,106320.0,1.01782921]
[1762775237349,0.12515712,106330.0,106320.0,1.01582921]
[1762775237511,0.14866882,106330.0,106320.0,1.01582921]
[1762775238167,0.12515712,106330.0,106320.0,1.01582921]
[1762775239316,0.14866882,106330.0,106320.0,1.01582921]
[1762775239516,0.33676249,106330.0,106320.0,1.01582921]
[1762775239799,0.31325079,106330.0,106320.0,1.01582921]
[1762775240432,0.64423886,106330.0,106320.0,0.68504114]
[1762775240636,0.64423886,106330.0,106320.0,0.02822978]
[1762775241042,0.31325079,106330.0,106320.0,0.02822978]
[1762775241248,0.38857681,106330.0,106320.0,0.02822978]
[1762775241450,0.38857681,106330.0,106320.0,0.21634114]
[1762775243842,0.41781816,106330.0,106320.0,0.21634114]
[1762775244390,0.38857681,106330.0,106320.0,0.21634114]
[1762775245283,0.20048314,106330.0,106320.0,0.21634114]
[1762775245758,0.38857681,106330.0,106320.0,0.21634114]
[1762775246187,0.20048314,106330.0,106320.0,0.21634114]
[1762775246419,0.38857681,106330.0,106320.0,0.21634114]
[1762775247027,0.20048314,106330.0,106320.0,0.21634114]
[1762775247466,0.12515712,106330.0,106320.0,0.54732921]
[1762775249014,0.33676249,106330.0,106320.0,0.54732921]
[1762775249217,0.31325079,106330.0,106320.0,0.54732921]
[1762775249635,0.12515712,106330.0,106320.0,0.54732921]
[1762775252430,0.12515712,106330.0,106320.0,0.87831728]
[1762775253160,0.12515712,106330.0,106320.0,0.54732921]
[1762775256875,0.31325079,106330.0,106320.0,0.54732921]
[1762775257625,0.12515712,106330.0,106320.0,0.54732921]
[1762775259536,0.31325079,106330.0,106320.0,0.54732921]
[1762775260522,0.38857681,106330.0,106320.0,0.54732921]
[1762775260725,0.38857681,106330.0,106320.0,0.02822978]
[1762775261811,0.39057681,106330.0,106320.0,0.02822978]
[1762775262190,0.39157681,106330.0,106320.0,0.02822978]
[1762775262396,0.39157681,106330.0,106320.0,0.21634114]
[1762775265127,0.39157681,106330.0,106320.0,0.54732921]
[1762775267822,0.39157681,106330.0,106320.0,0.21634114]
[1762775268058,0.39157681,106330.0,106320.0,0.54732921]
[1762775268262,0.31625079,106330.0,106320.0,0.54732921]
[1762775269072,0.31625079,106330.0,106320.0,0.21634114]
[1762775269276,0.31625079,106330.0,106320.0,0.54732921]
[1762775269805,0.31625079,106330.0,106320.0,0.35921785]
[1762775270408,0.31625079,106330.0,106320.0,0.54732921]
[1762775271055,0.42159324,106330.0,106320.0,0.02822978]
[1762775271280,0.18811136,106320.0,106300.0,0.58787672]
[1762775271409,0.57809335,106320.0,106310.0,0.21637063]
[1762775271607,0.19944136,106320.0,106310.0,0.02824158]
[1762775271809,0.55394335,106320.0,106310.0,0.02824158]
[1762775272008,0.57072943,106320.0,106310.0,0.02824158]
[1762775273087,0.57072943,106320.0,106310.0,0.21637063]
[1762775273508,0.05163,106320.0,106310.0,0.5473587]
[1762775274733,0.05163,106320.0,106310.0,0.5410987]
[1762775275717,0.23974136,106320.0,106310.0,0.5410987]
[1762775276101,0.23974136,106320.0,106310.0,0.21011063]
[1762775276351,0.23974136,106320.0,106310.0,0.5410987]
[1762775277867,0.05163,106320.0,106310.0,0.5410987]
[1762775284943,0.05163,106320.0,106310.0,0.54134273]
[1762775288286,0.23974136,106320.0,106310.0,0.54134273]
[1762775289413,0.05163,106320.0,106310.0,0.54134273]
[1762775289739,0.23974136,106320.0,106310.0,0.54134273]
[1762775290576,0.05163,106320.0,106310.0,0.54134273]
[1762775290775,0.05463,106320.0,106310.0,0.54134273]
[1762775291011,0.24274136,106320.0,106310.0,0.54134273]
[1762775292867,0.30182349,106320.0,106310.0,0.54134273]
[1762775293480,0.11371213,106320.0,106310.0,0.54134273]
[1762775293632,0.30182349,106320.0,106310.0,0.54181305]
[1762775293928,0.30182349,106320.0,106310.0,0.54134273]
[1762775293929,0.11371213,106320.0,106310.0,0.54134273]
[1762775294131,0.11371213,106320.0,106310.0,0.54181305]
[1762775294890,0.05463,106320.0,106310.0,0.54181305]
[1762775295304,0.05463,106320.0,106310.0,0.54244131]
[1762775296155,0.24274136,106320.0,106310.0,0.54244131]
[1762775296339,0.05463,106320.0,106310.0,0.54197099]
[1762775296531,0.05463,106320.0,106310.0,0.54244131]
[1762775296937,0.24274136,106320.0,106310.0,0.54244131]
[1762775297141,0.24274136,106320.0,106310.0,0.54197099]
[1762775298108,0.05463,106320.0,106310.0,0.54197099]
[1762775298310,0.05463,106320.0,106310.0,0.54244131]
[1762775298557,0.24274136,106320.0,106310.0,0.54244131]
[1762775298762,0.24274136,106320.0,106310.0,0.54197099]
[1762775299342,0.03096,106320.0,106310.0,0.86497099]
[1762775300172,0.05497,106320.0,106310.0,0.86497099]
[1762775306318,0.05497,106320.0,106310.0,0.86420099]
[1762775312405,0.01433,106320.0,106310.0,0.86794099]
[1762775313191,0.05291,106320.0,106310.0,0.86420099]
[1762775315628,0.05291,106320.0,106310.0,0.85440099]
[1762775317357,0.05291,106320.0,106310.0,1.00010099]
[1762775317578,0.02952,106320.0,106310.0,1.00010099]
[1762775317797,0.01433,106320.0,106310.0,1.00384099]
[1762775318018,0.02952,106320.0,106310.0,1.00010099]
[1762775318281,0.05291,106320.0,106310.0,1.00010099]
[1762775319378,0.05291,106320.0,106310.0,1.00057131]
[1762775320840,0.05291,106320.0,106310.0,0.66933921]
[1762775321041,0.24102136,106320.0,106310.0,0.66933921]
[1762775321281,0.27358788,106320.0,106310.0,1.00010099]
[1762775321501,0.05291,106320.0,106310.0,1.00057131]
[1762775322856,0.05291,106320.0,106310.0,1.00010099]
[1762775323070,0.05291,106320.0,106310.0,1.00057131]
[1762775324914,0.05291,106320.0,106310.0,1.00010099]
[1762775326810,0.05291,106320.0,106310.0,0.66886889]
[1762775327028,0.05291,106320.0,106310.0,1.00057131]
[1762775327233,0.05291,106320.0,106310.0,1.06789779]
[1762775327768,0.05291,106320.0,106310.0,0.74489779]
[1762775330768,0.05291,106320.0,106310.0,0.41366569]
[1762775331046,0.05291,106320.0,106310.0,0.74489779]
[1762775331252,0.05291,106320.0,106310.0,0.59919779]
[1762775331752,0.05291,106320.0,106310.0,0.68919779]
[1762775336146,0.05291,106320.0,106310.0,0.68790779]
[1762775339140,0.05291,106320.0,106310.0,0.35667569]
[1762775339491,0.05291,106320.0,106310.0,0.68790779]
[1762775339869,0.0538,106320.0,106310.0,0.68790779]
[1762775340297,0.003,106320.0,106310.0,0.69491747]
[1762775341941,0.003,106320.0,106310.0,1.02614957]
[1762775342400,0.003,106320.0,106310.0,0.69491747]
[1762775342541,0.003,106320.0,106310.0,0.36368537]
[1762775342740,0.003,106320.0,106310.0,0.69491747]
[1762775344936,0.003,106320.0,106310.0,1.02597583]
[1762775347703,0.001,106320.0,106310.0,1.02597583]
[1762775349294,0.08465712,106330.0,106320.0,0.18811136]
[1762775349493,0.08465712,106330.0,106320.0,0.85040182]
[1762775349867,0.10036712,106330.0,106320.0,0.21634674]
[1762775350071,0.12464712,106330.0,106320.0,0.8786372]
[1762775350516,0.12664712,106330.0,106320.0,0.8786372]
[1762775350673,0.12764712,106330.0,106320.0,0.8786372]
[1762775351963,0.31574079,106330.0,106320.0,0.8786372]
[1762775353037,0.12764712,106330.0,106320.0,0.21634674]
[1762775353242,0.16771478,106330.0,106320.0,0.8786372]
[1762775353680,0.35580845,106330.0,106320.0,0.21634674]
[1762775353992,0.35580845,106330.0,106320.0,0.8786372]
[1762775354926,0.16771478,106330.0,106320.0,0.8786372]
[1762775355146,0.35580845,106330.0,106320.0,0.8786372]
[1762775355792,0.16771478,106330.0,106320.0,0.21634674]
[1762775356053,0.16771478,106330.0,106320.0,0.8786372]
[1762775358144,0.12764712,106330.0,106320.0,0.8786372]
[1762775359991,0.31574079,106330.0,106320.0,0.8786372]
[1762775360222,0.12764712,106330.0,106320.0,0.8786372]
[1762775360439,0.31574079,106330.0,106320.0,0.8786372]
[1762775361418,0.64688602,106330.0,106320.0,0.02823538]
[1762775361628,0.18811136,106320.0,106310.0,0.18875731]
[1762775361839,0.26164528,106320.0,106310.0,0.54814132]
[1762775362057,0.23813136,106320.0,106310.0,0.54814132]
[1762775364526,0.23813136,106320.0,106310.0,0.36001227]
[1762775364732,0.23913136,106320.0,106310.0,0.36001227]
[1762775364933,0.23913136,106320.0,106310.0,0.54814132]
[1762775365140,0.24013136,106320.0,106310.0,0.54814132]
[1762775367333,0.40967029,106320.0,106310.0,0.02886704]
[1762775367534,0.74081552,106320.0,106310.0,0.00062826]
[1762775367745,0.40967029,106320.0,106310.0,0.00062826]
[1762775368189,0.40967029,106320.0,106310.0,0.18875731]
[1762775369782,0.40967029,106320.0,106310.0,0.00062826]
[1762775369990,0.40967029,106320.0,106310.0,0.18875731]
[1762775370195,0.40967029,106320.0,106310.0,0.00062826]
[1762775370742,0.74081552,106320.0,106310.0,0.00062826]
[1762775375833,0.40967029,106320.0,106310.0,0.00062826]
[1762775376038,0.74081552,106320.0,106310.0,0.00062826]
[1762775376239,0.40967029,106320.0,106310.0,0.00062826]
[1762775376443,0.74081552,106320.0,106310.0,0.00062826]
[1762775379598,0.40967029,106320.0,106310.0,0.18875731]
[1762775379803,0.74081552,106320.0,106310.0,0.18875731]
[1762775379959,0.74081552,106320.0,106310.0,0.00062826]
[1762775380504,0.74081552,106320.0,106310.0,0.18875731]
[1762775382278,0.74081552,106320.0,106310.0,0.00062826]
[1762775382484,0.74081552,106320.0,106310.0,0.18875731]
[1762775382905,0.74081552,106320.0,106310.0,0.00062826]
[1762775385340,1.07196075,106320.0,106310.0,0.00062826]
[1762775385543,0.74081552,106320.0,106310.0,0.00062826]
[1762775391766,0.40967029,106320.0,106310.0,0.18875731]
[1762775391977,0.74081552,106320.0,106310.0,0.00062826]
[1762775392185,0.74081552,106320.0,106310.0,0.18875731]
[1762775392754,0.74081552,106320.0,106310.0,0.00062826]
[1762775392967,0.40967029,106320.0,106310.0,0.18875731]
[1762775393173,0.74081552,106320.0,106310.0,0.00062826]
[1762775393861,0.74081552,106320.0,106310.0,0.18875731]
[1762775395494,0.74081552,106320.0,106310.0,0.00062826]
[1762775395698,0.74081552,106320.0,106310.0,0.18875731]
[1762775395895,0.74081552,106320.0,106310.0,0.00062826]
[1762775396231,0.75844436,106320.0,106310.0,0.00062826]
[1762775397451,0.42729913,106320.0,106310.0,0.00062826]
[1762775397665,0.78668889,106320.0,106310.0,0.00062826]
[1762775397883,0.78669177,106320.0,106310.0,0.00062826]
[1762775398756,0.7866929,106320.0,106310.0,0.00062826]
[1762775401856,1.11783813,106320.0,106310.0,0.00062826]
[1762775402081,1.66465113,106320.0,106310.0,0.00062826]
[1762775403040,1.66365113,106320.0,106310.0,0.00062826]
[1762775403261,1.66565113,106320.0,106310.0,0.00062826]
[1762775403477,1.66765113,106320.0,106310.0,0.00062826]
[1762775403719,1.45271413,106320.0,106310.0,0.00062826]
[1762775403942,1.16215813,106320.0,106310.0,0.00062826]
[1762775404852,0.8310129,106320.0,106310.0,0.00062826]
[1762775405078,0.36433476,106320.0,106310.0,0.00062826]
[1762775405805,0.69571172,106320.0,106310.0,0.00062826]
[1762775406771,1.97351872,106320.0,106310.0,0.00062826]
[1762775409954,2.34107796,106320.0,106310.0,0.00062826]
[1762775410821,2.34107796,106320.0,106310.0,9.424e-05]
[1762775411030,1.89946096,106320.0,106310.0,9.424e-05]
[1762775411278,1.99756269,106320.0,106310.0,9.424e-05]
[1762775412901,1.64792303,106320.0,106310.0,0.00383424]
[1762775413128,0.005,106320.0,106310.0,1.27706211]
[1762775413354,0.005,106320.0,106310.0,1.4164592]
[1762775413558,0.07291712,106330.0,106320.0,0.22429364]
[1762775413828,0.07291712,106330.0,106320.0,0.89567458]
[1762775414045,0.07291712,106330.0,106320.0,0.19232132]
[1762775414254,0.07291712,106330.0,106320.0,0.52743828]
[1762775414505,0.07291712,106330.0,106320.0,0.52743859]
[1762775415592,0.07291712,106330.0,106320.0,0.52943859]
[1762775417313,0.07291712,106330.0,106320.0,0.55767036]
[1762775422092,0.07291712,106330.0,106320.0,0.88904732]
[1762775422302,1e-08,106330.0,106320.0,0.88857705]
[1762775422944,1e-08,106330.0,106320.0,1.03427705]
[1762775425927,1e-08,106330.0,106320.0,1.03474732]
[1762775428246,1e-08,106330.0,106320.0,1.03427705]
[1762775428674,1e-08,106330.0,106320.0,1.03474732]
[1762775429531,1e-08,106330.0,106320.0,1.03427705]
[1762775431670,1e-08,106330.0,106320.0,1.3939296]
[1762775439895,1e-08,106330.0,106320.0,1.75845038]
[1762775440097,1e-08,106330.0,106320.0,1.3939296]
[1762775442380,1e-08,106330.0,106320.0,1.47808623]
[1762775443353,1e-08,106330.0,106320.0,1.72378623]
[1762775446939,1e-08,106330.0,106320.0,1.7069808]
[1762775447716,1e-08,106330.0,106320.0,1.08998156]
[1762775447921,0.05192001,106330.0,106320.0,0.69963036]
[1762775448127,0.06953503,106330.0,106320.0,0.69963036]
[1762775448544,0.04509503,106330.0,106320.0,1.02263036]
[1762775448737,0.04509503,106330.0,106320.0,1.02063036]
[1762775449122,0.04509503,106330.0,106320.0,1.02163036]
[1762775449509,0.02925503,106330.0,106320.0,1.02163036]
[1762775450804,0.02925503,106330.0,106320.0,0.99339859]
[1762775451015,0.06953503,106330.0,106320.0,0.98965859]
[1762775451226,0.06953503,106330.0,106320.0,0.98918832]
[1762775452417,0.05192001,106330.0,106320.0,0.98918832]
[1762775453956,0.05192001,106330.0,106320.0,0.84348832]
[1762775456985,0.02748001,106330.0,106320.0,0.84348832]
[1762775457189,0.05032001,106330.0,106320.0,0.84348832]
[1762775458132,0.02748001,106330.0,106320.0,0.84348832]
[1762775460194,0.02748001,106330.0,106320.0,0.65537696]
[1762775460195,0.21557368,106330.0,106320.0,0.65537696]
[1762775460410,0.23841368,106330.0,106320.0,0.51211136]
[1762775460620,0.33133904,106330.0,106320.0,0.18911136]
[1762775462195,0.33133904,106330.0,106320.0,0.18811136]
[1762775462399,0.33133904,106330.0,106310.0,0.19196329]
[1762775462598,0.29265904,106330.0,106320.0,0.18811136]
[1762775462980,0.30812904,106330.0,106320.0,0.18811136]
[1762775463330,0.40875735,106330.0,106320.0,0.18811136]
[1762775463533,0.3133697,106330.0,106320.0,0.18811136]
[1762775463962,0.3133697,106330.0,106310.0,0.33866329]
[1762775464191,0.05066,106320.0,106310.0,0.51122329]
[1762775465247,0.23877136,106320.0,106310.0,0.51122329]
[1762775465453,0.05066,106320.0,106310.0,0.51122329]
[1762775467044,0.05066,106320.0,106310.0,0.84250661]
[1762775467732,0.05066,106320.0,106310.0,9.424e-05]
[1762775467970,0.26228528,106320.0,106310.0,0.18822329]
[1762775468146,0.05066,106320.0,106310.0,0.18822329]
[1762775468447,0.23877136,106320.0,106310.0,0.18822329]
[1762775468704,0.24177136,106320.0,106310.0,0.18822329]
[1762775471939,0.24177136,106320.0,106310.0,9.424e-05]
[1762775472533,0.24177136,106320.0,106310.0,0.18822329]
[1762775474924,0.24177136,106320.0,106310.0,9.424e-05]
[1762775475362,0.57305468,106320.0,106310.0,9.424e-05]
[1762775475560,0.66638861,106320.0,106310.0,9.424e-05]
[1762775476771,0.33510529,106320.0,106310.0,9.424e-05]
[1762775476985,0.66638861,106320.0,106310.0,9.424e-05]
[1762775478788,0.33510529,106320.0,106310.0,9.424e-05]
[1762775478990,0.99767193,106320.0,106310.0,9.424e-05]
[1762775479211,0.18812905,106310.0,106300.0,0.18814624]
[1762775479414,0.3376312,106310.0,106290.0,0.52053881]
[1762775479616,0.05066,106300.0,106290.0,0.85182213]
[1762775481770,0.23880675,106300.0,106280.0,0.52315641]
[1762775481971,0.02744,106290.0,106280.0,0.84615641]
[1762775482193,0.05043,106290.0,106280.0,0.84615641]
[1762775483083,0.01145,106290.0,106280.0,1.18417973]
[1762775483210,0.01145,106290.0,106280.0,1.18466076]
[1762775484231,0.05043,106290.0,106280.0,1.18092076]
[1762775484608,0.05043,106290.0,106280.0,1.18194751]
[1762775485012,0.05043,106290.0,106280.0,1.18294751]
[1762775488736,0.01145,106290.0,106280.0,1.18668751]
[1762775493404,0.01145,106290.0,106280.0,1.33238751]
[1762775494957,0.03534,106300.0,106280.0,1.33238751]
[1762775495164,0.01760296,106300.0,106290.0,0.52318777]
[1762775495369,0.03534,106310.0,106300.0,0.18814675]
[1762775495576,0.05294397,106310.0,106300.0,0.51943007]
[1762775495787,0.06893397,106310.0,106300.0,0.51943007]
[1762775497803,0.07093397,106310.0,106300.0,0.51943007]
[1762775502305,0.05333,106310.0,106300.0,0.51943007]
[1762775506769,0.05333,106310.0,106300.0,0.18814675]
[1762775506979,0.70660605,106310.0,106290.0,0.1894284]
[1762775507184,0.05043,106300.0,106290.0,0.52024131]
[1762775507408,0.05043,106300.0,106290.0,0.52071172]
[1762775508300,0.05043,106300.0,106290.0,0.52171172]
[1762775508725,0.05043,106300.0,106290.0,0.52071172]
[1762775509220,0.06762561,106300.0,106290.0,0.18995799]
[1762775509363,0.23857675,106300.0,106290.0,0.18995799]
[1762775509565,0.23857675,106300.0,106290.0,0.52124131]
[1762775511153,0.23857675,106300.0,106290.0,0.18995799]
[1762775511354,0.23857675,106300.0,106290.0,0.21820337]
[1762775511916,0.23857675,106300.0,106290.0,0.03003892]
[1762775512552,0.23857675,106300.0,106290.0,0.21820337]
[1762775512760,0.23857675,106300.0,106290.0,0.03003892]
[1762775513001,0.23857675,106300.0,106290.0,0.18995799]
[1762775513002,0.56986007,106300.0,106290.0,0.18995799]
[1762775513859,0.05043,106300.0,106290.0,0.18995799]
[1762775514059,0.23857675,106300.0,106290.0,0.18995799]
[1762775515248,0.56986007,106300.0,106290.0,0.18995799]
[1762775515603,0.56986007,106300.0,106290.0,0.00179354]
[1762775516504,0.23857675,106300.0,106290.0,0.18995799]
[1762775516637,0.23857675,106300.0,106290.0,0.00179354]
[1762775516999,0.56986007,106300.0,106290.0,0.00179354]
[1762775519657,0.56986007,106300.0,106290.0,0.18995799]
[1762775519658,0.23857675,106300.0,106290.0,0.18995799]
[1762775519870,0.56986007,106300.0,106290.0,0.18995799]
[1762775521024,0.23857675,106300.0,106290.0,0.18995799]
[1762775521219,0.56986007,106300.0,106290.0,0.18995799]
[1762775522046,0.56986007,106300.0,106290.0,0.00179354]
[1762775525285,0.66139141,106300.0,106290.0,0.00179354]
[1762775525483,0.56986007,106300.0,106290.0,0.00179354]
[1762775526952,0.57006939,106300.0,106290.0,0.00179354]
[1762775529036,0.23857675,106300.0,106290.0,0.00179354]
[1762775529444,0.05043,106300.0,106290.0,0.18995799]
[1762775529806,0.23857675,106300.0,106290.0,0.18995799]
[1762775532408,0.05043,106300.0,106290.0,0.52145063]
[1762775533014,0.23857675,106300.0,106290.0,0.52145063]
[1762775533208,0.05043,106300.0,106290.0,0.52145063]
[1762775533444,0.05043,106300.0,106290.0,0.18995799]
[1762775536511,0.05043,106300.0,106290.0,0.52145063]
[1762775537441,0.23857675,106300.0,106290.0,0.52145063]
[1762775537637,0.23857675,106300.0,106290.0,0.18995799]
[1762775538276,0.05043,106300.0,106290.0,0.18995799]
[1762775539117,0.23857675,106300.0,106290.0,0.18995799]
[1762775539324,0.05043,106300.0,106290.0,0.18995799]
[1762775543270,0.23857675,106300.0,106290.0,0.18995799]
[1762775543482,0.05043,106300.0,106290.0,0.18995799]
[1762775544835,0.23857675,106300.0,106290.0,0.18995799]
[1762775545233,0.05043,106300.0,106290.0,0.18995799]
[1762775545927,0.23857675,106300.0,106290.0,0.18995799]
[1762775548223,0.23857675,106300.0,106290.0,0.00179354]
[1762775548436,0.23857675,106300.0,106290.0,0.18995799]
[1762775557897,0.05043,106300.0,106290.0,0.18995799]
[1762775558281,0.23857675,106300.0,106290.0,0.18995799]
[1762775560168,0.05043,106300.0,106290.0,0.18995799]
[1762775566032,0.23857675,106300.0,106290.0,0.18995799]
[1762775566718,0.05043,106300.0,106290.0,0.18995799]
[1762775570000,0.23857675,106300.0,106290.0,0.18995799]
[1762775571666,0.23857675,106300.0,106290.0,0.21820462]
[1762775577307,0.23857675,106300.0,106290.0,0.03004017]
[1762775577764,0.23857675,106300.0,106290.0,0.21820462]
[1762775585632,0.23857675,106300.0,106290.0,0.03004017]
[1762775586060,0.25622227,106300.0,106290.0,0.03004017]
[1762775586265,0.61715509,106300.0,106290.0,0.00179354]
[1762775586686,0.58771491,106300.0,106290.0,0.00179354]
[1762775586905,0.58769971,106300.0,106290.0,0.00179354]
[1762775590834,0.58769971,106300.0,106290.0,0.18995799]